[Event "83rd ESP-ch Women-ch 2018"]
[Site "Linares"]
[Date "2018.08.20"]
[Round "1"]
[White "Ortin Blanco, Ainhoa"]
[Black "Teran Alvarez, Ismael"]
[Result "0-1"]
[ECO "A40"]
[WhiteElo "1951"]
[BlackElo "2377"]
[Annotator "NA"]
[PlyCount "96"]
[EventDate "2018.08.09"]
[EventType "tourn"]
[EventCountry "ESP"]
[SourceTitle "playchess.com"]
[Source "ChessBase"]
[SourceQuality "1"]
[TimeControl "40/5400+30:1800+30"]

1. d4 {[%emt 0:00:00]} e6 {[%emt 0:00:00]} 2. c4 {[%emt 0:00:07]} b6 {[%emt 0:00:14]} 3. Nc3 {[%emt 0:00:25]} Bb4 {[%emt 0:01:48]} 4. Qc2 {[%emt 0:01:57]} Bb7 {[%emt 0:01:43]} 5. e3 {[%emt 0:01:41] A40: Unusual replies to 1 d4} (5. Nf3 Nf6 6. Bg5 h6 7. Bh4 g5 8. Bg3 Ne4 9. e3 Bxc3+ 10. bxc3 d6 11. Bd3 f5 12. d5 Qf6 13. Bxe4 fxe4 14. Qxe4 Qxc3+ 15. Ke2 Qb2+ 16. Nd2 Qf6 17. h4 g4 18. h5 Nd7 19. Bh4 Qf5 20. Qxf5 exf5 {0-1 (34) Tang,A (2513)-Nakamura,H (2781) chess.com INT 2018}) 5... Nf6 {[%emt 0:07:32]} 6. Bd2 {[%emt 0:01:51]} O-O {[%emt 0:02:00]} 7. Nf3 {[%emt 0:02:47]} c5 {[%emt 0:00:34]} 8. Be2 {[%emt 0:06:11]} Nc6 {[%emt 0:09:15]} 9. O-O {[%emt 0:00:44]} cxd4 {[%emt 0:01:52]} 10. exd4 {[%emt 0:00:15]} d5 $146 {[%emt 0:00:54]} ({Predecessor:} 10... Rc8 11. a3 Bxc3 12. Bxc3 Ne7 13. b3 Re8 14. Bb2 Ng6 15. g3 d6 16. Rfe1 Qd7 {½-½ (16) Benes,J (2107)-Cvak,R (2248) ICCF email 2013}) 11. a3 {[%emt 0:02:44]} Bxc3 {[%emt 0:11:22]} 12. bxc3 {[%emt 0:01:33]} dxc4 13. Bxc4 {[%emt 0:00:15]} Na5 {[%emt 0:02:38]} 14. Be2 {[%emt 0:00:32]} Rc8 {[%emt 0:00:34]} 15. Ne5 {[%emt 0:12:36]} Qxd4 {[%emt 0:05:59]} 16. Qxh7+ {[%emt 0:01:13]} Nxh7 {[%emt 0:01:36]} 17. cxd4 {[%emt 0:00:21]} Nb3 {[%emt 0:00:26]} 18. Bb4 {[%emt 0:02:39]} Rfd8 {[%emt 0:01:46]} 19. Rad1 {[%emt 0:01:38]} Nxd4 {[%emt 0:07:40]} 20. Bd3 {[%emt 0:05:14]} Nf6 {[%emt 0:03:37]} 21. h3 {[%emt 0:12:14]} Nd5 {[%emt 0:07:00]} 22. Be4 {[%emt 0:06:50]} Ne2+ {[%emt 0:01:40]} 23. Kh2 {[%emt 0:00:45]} Nec3 {[%emt 0:00:36]} 24. Bxc3 {[%emt 0:04:54]} Rxc3 {[%emt 0:00:05]} 25. a4 {[%emt 0:02:32]} f6 {[%emt 0:05:24]} 26. Nf3 {[%emt 0:04:08]} Rc4 {[%emt 0:01:36]} 27. Rd4 {[%emt 0:00:58]} Rdc8 {[%emt 0:00:55]} 28. Rfd1 {[%emt 0:02:10]} Kf7 {[%emt 0:00:27]} 29. Kg3 {[%emt 0:02:41]} Rxd4 {[%emt 0:01:53]} 30. Rxd4 {[%emt 0:01:34]} Rc3 {[%emt 0:00:24]} 31. Kh2 {[%emt 0:03:08]} Ke7 {[%emt 0:00:20]} 32. Nd2 {[%emt 0:04:13]} Ra3 {[%emt 0:02:57]} 33. Bf3 {[%emt 0:06:53]} Bc6 {[%emt 0:02:34]} 34. Bd1 {[%emt 0:00:52]} e5 {[%emt 0:02:53]} 35. Rc4 {[%emt 0:01:38]} Rc3 {[%emt 0:00:49]} 36. Bb3 {[%emt 0:02:29]} Rxc4 {[%emt 0:00:48]} 37. Nxc4 {[%emt 0:00:14]} Nf4 {[%emt 0:01:48]} 38. Ne3 {[%emt 0:00:51]} Nd3 {[%emt 0:00:31]} 39. Nf5+ {[%emt 0:00:16]} Kf8 {[%emt 0:00:06]} 40. Nd6 {[%emt 0:00:15]} Nc5 {[%emt 0:00:26]} 41. Bc4 {[%emt 0:31:35]} Nxa4 {[%emt 0:30:31]} 42. Nc8 {[%emt 0:02:17]} a5 {[%emt 0:00:44]} 43. Bf1 {[%emt 0:00:39]} Bd7 {[%emt 0:00:22]} 44. Nd6 {[%emt 0:00:15]} Nc3 {[%emt 0:00:44]} 45. Kg3 {[%emt 0:00:56]} Ke7 {[%emt 0:01:23]} 46. Nc4 {[%emt 0:00:39]} Bb5 {[%emt 0:00:20]} 47. Kf3 {[%emt 0:00:22]} Bxc4 {[%emt 0:00:45]} 48. Bxc4 {[%emt 0:00:04]} a4 $19 {[%emt 0:00:17]} 0-1

[Event "83rd ESP-ch Women-ch 2018"]
[Site "Linares"]
[Date "2018.08.20"]
[Round "1"]
[White "De la Pena Garcia, Blanca"]
[Black "Sanchez Jerez, Emilio Miguel"]
[Result "0-1"]
[ECO "B00"]
[WhiteElo "1811"]
[BlackElo "2246"]
[Annotator "NA"]
[PlyCount "62"]
[EventDate "2018.08.09"]
[EventType "tourn"]
[EventCountry "ESP"]
[SourceTitle "playchess.com"]
[Source "ChessBase"]
[SourceQuality "1"]
[TimeControl "40/5400+30:1800+30"]

1. e4 {[%emt 0:00:00]} Nc6 {[%emt 0:00:00]} 2. d4 {[%emt 0:00:00]} d5 {[%emt 0:00:00]} 3. e5 {[%emt 0:00:47]} f6 {[%emt 0:00:00]} 4. Bf4 {[%emt 0:03:25]} Bf5 {[%emt 0:01:19]} 5. Bb5 {[%emt 0:03:04]} e6 {[%emt 0:01:40]} 6. Nf3 {[%emt 0:05:31]} Qd7 {[%emt 0:01:27]} 7. c3 {[%emt 0:03:56]} Nge7 {[%emt 0:00:36]} 8. Nbd2 {[%emt 0:04:09]} a6 {[%emt 0:00:38]} 9. Ba4 {[%emt 0:00:36]} h5 {[%emt 0:01:59]} 10. exf6 gxf6 {[%emt 0:00:30]} 11. Qe2 {[%emt 0:10:45]} Ng6 {[%emt 0:02:51]} 12. Be3 {[%emt 0:03:01]} Bd6 {[%emt 0:01:58]} 13. Nf1 {[%emt 0:04:29]} h4 {[%emt 0:02:07]} 14. h3 {[%emt 0:08:47]} O-O-O {[%emt 0:04:22]} 15. b4 {[%emt 0:04:35]} Kb8 {[%emt 0:08:33]} 16. Qd1 {[%emt 0:02:10]} Nf4 {[%emt 0:11:25]} 17. Bxf4 {[%emt 0:01:30]} Bxf4 {[%emt 0:00:11]} 18. b5 {[%emt 0:04:41]} axb5 {[%emt 0:02:42]} 19. Bxb5 {[%emt 0:00:09]} Qd6 {[%emt 0:03:46]} 20. a4 {[%emt 0:03:42]} e5 {[%emt 0:05:07]} 21. Bxc6 {[%emt 0:20:04]} Qxc6 {[%emt 0:03:06]} 22. Qb3 {[%emt 0:00:07]} e4 {[%emt 0:15:14]} 23. Ng1 {[%emt 0:01:03]} e3 {[%emt 0:03:41]} 24. fxe3 {[%emt 0:03:36]} Rde8 {[%emt 0:05:38]} 25. Kf2 {[%emt 0:03:24]} Bg3+ {[%emt 0:03:35]} 26. Ke2 {[%emt 0:01:42]} Qe6 {[%emt 0:05:26]} 27. Qb2 {[%emt 0:03:10]} Qe4 {[%emt 0:01:34]} 28. Kd1 {[%emt 0:01:10]} Qd3+ {[%emt 0:01:01]} 29. Nd2 {[%emt 0:00:42]} Rxe3 {[%emt 0:02:23]} 30. Ngf3 {[%emt 0:00:38]} Rhe8 {[%emt 0:01:35]} 31. Rg1 {[%emt 0:01:31]} Be4 {[%emt 0:02:00]} 0-1

[Event "83rd ESP-ch Women-ch 2018"]
[Site "Linares"]
[Date "2018.08.21"]
[Round "2"]
[White "Mohamed Garcia, Ismael"]
[Black "Sosa Suarez, Carla Cristina"]
[Result "*"]
[ECO "A45"]
[WhiteElo "1814"]
[BlackElo "2006"]
[Annotator "NA RC"]
[PlyCount "124"]
[EventDate "2018.08.09"]
[EventType "tourn"]
[EventCountry "ESP"]
[SourceTitle "playchess.com"]
[Source "ChessBase"]
[SourceQuality "1"]
[TimeControl "40/5400+30:1800+30"]

1. d4 {[%emt 0:00:00]} Nf6 {[%emt 0:00:00]} 2. Bf4 {[%emt 0:00:00]} d5 {[%emt 0:00:00]} 3. e3 {[%emt 0:00:00]} Bf5 {[%emt 0:00:35]} 4. Bd3 {[%emt 0:00:35]} e6 {[%emt 0:00:41]} 5. Bxf5 {[%emt 0:00:10]} exf5 {[%emt 0:00:05]} 6. Qd3 {[%emt 0:00:08]} g6 {[%emt 0:26:13]} 7. Qb5+ {[%emt 0:05:49]} Nbd7 {[%emt 0:00:49]} 8. Be5 Be7 9. Bxf6 Bxf6 10. Qxd5 c6 11. Qb3 c5 12. Ne2 f4 13. Qxb7 O-O 14. Qf3 Qa5+ 15. c3 cxd4 16. exd4 Qb5 17. b3 Rfe8 18. c4 Qa5+ 19. Nbc3 Bxd4 20. O-O Ne5 21. Qh3 f3 22. Nxd4 Qxc3 23. Nxf3 Nc6 24. Ng5 Qg7 25. Rad1 h6 26. Nf3 Re2 27. Rd2 Re6 28. Qg3 Rae8 29. h3 g5 30. Rfd1 Qf6 31. Kh2 Ne7 32. Rd8 Nc6 33. Rxe8+ Rxe8 34. Rd6 Re6 35. Rxe6 Qxe6 36. Qc7 Kg7 37. c5 Ne7 38. Qe5+ Qxe5+ 39. Nxe5 h5 40. Kg3 f5 41. Kf3 Kf6 42. Nd3 Ke6 43. Ke3 Kd5 44. b4 Kc4 45. a3 Nd5+ 46. Kd2 Kb3 47. c6 Kxa3 48. Nc5 Kxb4 49. Na6+ Kb5 50. c7 Ne7 51. c8=Q Nxc8 52. Nc7+ Kc4 53. Ne6 a5 54. Nxg5 a4 55. Kc1 a3 56. Nf3 Kd3 57. Nh4 Ne7 58. g4 fxg4 59. hxg4 hxg4 60. Ng2 Nd5 61. f3 gxf3 62. Ne1+ Kc3 *

[Event "83rd ESP-ch Women-ch 2018"]
[Site "Linares"]
[Date "2018.08.22"]
[Round "3"]
[White "Matnadze, Ana"]
[Black "Roldan Marques, Daniel"]
[Result "1/2-1/2"]
[ECO "A05"]
[WhiteElo "2378"]
[BlackElo "2161"]
[Annotator "NA"]
[PlyCount "60"]
[EventDate "2018.08.09"]
[EventType "tourn"]
[EventCountry "ESP"]
[SourceTitle "playchess.com"]
[Source "ChessBase"]
[SourceQuality "1"]
[TimeControl "40/5400+30:1800+30"]

1. Nf3 {[%emt 0:00:00]} Nf6 {[%emt 0:03:01]} 2. c4 {[%emt 0:00:00]} c6 {[%emt 0:00:11]} 3. g3 {[%emt 0:00:06]} d5 {[%emt 0:00:31]} 4. d4 {[%emt 0:01:41]} dxc4 {[%emt 0:01:29]} 5. Bg2 {[%emt 0:00:35]} b5 {[%emt 0:01:06]} 6. a4 {[%emt 0:01:08] D11: Slav Defence: 3 Nf3 sidelines and 3...Nf6 4 e3 Bg4} (6. O-O e6 7. a4 Bb7 8. Ne5 a6 9. b3 cxb3 10. Qxb3 Be7 11. Nc3 b4 12. Rd1 a5 13. Bg5 O-O 14. Bxf6 gxf6 {1-0 (37) Mchedlishvili,M (2603)-Eljanov,P (2711) Riadh 2017}) 6... Bb7 {[%emt 0:00:26]} 7. b3 {[%emt 0:04:23]} cxb3 {[%emt 0:02:27]} 8. Qxb3 {[%emt 0:03:39]} a6 {[%emt 0:04:27]} 9. Ba3 $146 {[%emt 0:06:53]} ({Predecessor:} 9. O-O e6 10. Bb2 Nbd7 11. Nbd2 Be7 12. Rfd1 O-O 13. Ne5 Nd5 {0-1 (33) Curtis,J-Hay,T Australia 1973}) 9... Nbd7 {[%emt 0:07:26]} 10. Ne5 {[%emt 0:11:40]} Nxe5 {[%emt 0:12:44]} 11. dxe5 {[%emt 0:00:12]} Nd5 {[%emt 0:03:48]} 12. O-O {[%emt 0:11:15]} e6 {[%emt 0:03:54]} 13. Bxf8 {[%emt 0:01:21]} Kxf8 {[%emt 0:00:36]} 14. Nc3 {[%emt 0:05:29]} Nxc3 {[%emt 0:11:33]} 15. Qxc3 {[%emt 0:01:17]} Qe7 {[%emt 0:03:22]} 16. Rfc1 {[%emt 0:22:19]} g6 {[%emt 0:11:02]} 17. Bxc6 {[%emt 0:09:11]} Rc8 {[%emt 0:05:24]} 18. axb5 {[%emt 0:00:05]} axb5 {[%emt 0:00:19]} 19. Qf3 {[%emt 0:02:38]} Rxc6 {[%emt 0:02:55]} 20. Rxc6 {[%emt 0:00:38]} Bxc6 {[%emt 0:00:53]} 21. Qxc6 {[%emt 0:00:15]} b4 {[%emt 0:02:52]} 22. Qb6 {[%emt 0:07:06]} Kg7 {[%emt 0:05:23]} 23. Ra7 {[%emt 0:00:06]} Qe8 {[%emt 0:00:21]} 24. Qxb4 {[%emt 0:00:29]} Qb8 $14 {[%emt 0:01:21]} 25. Qe7 {[%emt 0:07:41]} Qb1+ {[%emt 0:02:02]} 26. Kg2 {[%emt 0:00:02]} Qe4+ {[%emt 0:00:15]} 27. Kg1 {[%emt 0:00:24]} Qb1+ {[%emt 0:00:07]} 28. Kg2 {[%emt 0:00:01]} Qe4+ {[%emt 0:00:06]} 29. Kg1 {[%emt 0:02:09]} Qb1+ {[%emt 0:00:08]} 30. Kg2 {[%emt 0:00:05]} Qe4+ {[%emt 0:00:09]} 1/2-1/2

[Event "83rd ESP-ch Women-ch 2018"]
[Site "Linares"]
[Date "2018.08.22"]
[Round "3"]
[White "Bernabeu Lopez, Carlos Javier"]
[Black "Gil Quilez, Sonia"]
[Result "1-0"]
[ECO "C70"]
[WhiteElo "2360"]
[BlackElo "2066"]
[Annotator "NA"]
[PlyCount "99"]
[EventDate "2018.08.09"]
[EventType "tourn"]
[EventCountry "ESP"]
[SourceTitle "playchess.com"]
[Source "ChessBase"]
[SourceQuality "1"]
[TimeControl "40/5400+30:1800+30"]

1. e4 {[%emt 0:00:00]} e5 {[%emt 0:00:00]} 2. Nf3 {[%emt 0:00:00]} Nc6 {[%emt 0:00:04]} 3. Bb5 {[%emt 0:00:00]} a6 {[%emt 0:00:27]} 4. Ba4 {[%emt 0:00:05]} Nge7 {[%emt 0:00:21]} 5. c3 {[%emt 0:00:47]} g6 {[%emt 0:00:42]} 6. d4 {[%emt 0:00:09]} exd4 {[%emt 0:00:23]} 7. cxd4 {[%emt 0:00:05]} Bg7 {[%emt 0:00:57]} 8. O-O {[%emt 0:02:10]} O-O {[%emt 0:00:55] C60: Ruy Lopez: Unusual Black 3rd moves and 3...g6} (8... b5 9. Bc2 d5 10. exd5 Nb4 11. Bb3 Nbxd5 12. Nc3 O-O 13. Re1 h6 14. h3 Nxc3 15. bxc3 Bb7 16. Ne5 {½-½ (40) Caruana,F (2816)-Giri,A (2782) Leuven 2018}) 9. d5 {[%emt 0:04:27]} Ne5 {[%emt 0:01:36]} 10. Nxe5 {[%emt 0:01:57]} Bxe5 {[%emt 0:00:08]} 11. Nc3 {[%emt 0:02:24]} Bg7 $146 {[%emt 0:06:44]} ({Predecessor:} 11... b5 12. Bb3 d6 13. Bh6 Re8 14. f4 Bg7 15. Bxg7 Kxg7 {1-0 (59) Gal,H (2074)-Furedi,E (1989) Budapest 2013}) 12. d6 {[%emt 0:02:28]} cxd6 {[%emt 0:03:53]} 13. Bg5 {[%emt 0:03:20]} h6 {[%emt 0:03:47]} 14. Bh4 {[%emt 0:05:50]} g5 {[%emt 0:02:13]} 15. Bg3 {[%emt 0:01:02]} Be5 {[%emt 0:00:14]} 16. Bxe5 {[%emt 0:01:21]} dxe5 {[%emt 0:00:16]} 17. Qd6 {[%emt 0:00:11]} Ng6 {[%emt 0:01:13]} 18. Bb3 {[%emt 0:00:35]} Kg7 {[%emt 0:02:06]} 19. Nd5 {[%emt 0:04:42]} b5 {[%emt 0:03:47]} 20. Rac1 {[%emt 0:05:19]} Bb7 {[%emt 0:02:54]} 21. Nb6 {[%emt 0:02:47]} Rb8 {[%emt 0:04:10]} 22. Nxd7 {[%emt 0:00:48]} Rc8 {[%emt 0:00:29]} 23. Rxc8 {[%emt 0:10:47]} Bxc8 {[%emt 0:00:16]} 24. Rd1 {[%emt 0:00:09]} Bxd7 {[%emt 0:04:44]} 25. Qxd7 {[%emt 0:00:04]} Qb6 {[%emt 0:00:47]} 26. g3 {[%emt 0:06:48]} Qc5 {[%emt 0:03:31]} 27. Rd6 {[%emt 0:02:10]} a5 {[%emt 0:04:04]} 28. Rc6 {[%emt 0:03:30]} Qb4 {[%emt 0:01:00]} 29. Qf5 {[%emt 0:01:01]} Qe7 {[%emt 0:02:07]} 30. Rb6 {[%emt 0:02:18]} Rd8 {[%emt 0:09:47]} 31. Bd5 {[%emt 0:00:24]} Rd7 {[%emt 0:00:22]} 32. Rxb5 {[%emt 0:01:16]} Ra7 {[%emt 0:00:57]} 33. a4 {[%emt 0:00:53]} Nf8 {[%emt 0:00:46]} 34. Qf3 {[%emt 0:02:23]} Nd7 {[%emt 0:09:51]} 35. Qc3 {[%emt 0:04:36]} Nf6 {[%emt 0:06:01]} 36. Rxa5 {[%emt 0:01:37]} Rc7 {[%emt 0:00:12]} 37. Qd2 {[%emt 0:01:17]} Qd6 {[%emt 0:01:14]} 38. Qe2 {[%emt 0:02:27]} Qb4 {[%emt 0:01:19]} 39. Ra6 {[%emt 0:01:01]} g4 {[%emt 0:00:39]} 40. Kg2 {[%emt 0:02:23]} Qd4 {[%emt 0:01:35]} 41. Rxf6 {[%emt 0:33:28]} Kxf6 {[%emt 0:30:30]} 42. Qxg4 {[%emt 0:00:13]} Qxb2 {[%emt 0:00:28]} 43. Qg8 {[%emt 0:00:44]} Qc3 $18 {[%emt 0:02:02]} 44. h4 {[%emt 0:00:56]} Rd7 {[%emt 0:04:37]} 45. Qh7 {[%emt 0:00:29]} Qc7 {[%emt 0:03:45]} 46. Qxh6+ {[%emt 0:00:32]} Ke7 {[%emt 0:00:08]} 47. Qg5+ {[%emt 0:00:49]} Kd6 {[%emt 0:00:26]} 48. h5 {[%emt 0:00:06]} Qb8 {[%emt 0:01:51]} 49. Qf6+ {[%emt 0:00:14]} Kc5 {[%emt 0:00:10]} 50. Qc6+ {[%emt 0:00:06]} 1-0

[Event "83rd ESP-ch Women-ch 2018"]
[Site "Linares"]
[Date "2018.08.22"]
[Round "3"]
[White "Tudela Corbalan, Carlos"]
[Black "Gonzalez Guedes, Iyan"]
[Result "1-0"]
[ECO "A25"]
[WhiteElo "2246"]
[BlackElo "1925"]
[Annotator "NA"]
[PlyCount "89"]
[EventDate "2018.08.09"]
[EventType "tourn"]
[EventCountry "ESP"]
[SourceTitle "playchess.com"]
[Source "ChessBase"]
[SourceQuality "1"]
[TimeControl "40/5400+30:1800+30"]

1. c4 {[%emt 0:04:10]} e5 {[%emt 0:00:00]} 2. Nc3 {[%emt 0:01:02]} Nc6 {[%emt 0:00:00]} 3. g3 {[%emt 0:00:05]} g6 {[%emt 0:00:00]} 4. Bg2 {[%emt 0:00:04]} Bg7 {[%emt 0:00:00]} 5. e3 {[%emt 0:00:07]} d6 {[%emt 0:00:48]} 6. Nge2 {[%emt 0:00:06]} f5 {[%emt 0:01:07]} 7. b3 {[%emt 0:00:27] A25: English Opening vs King's Indian with ...Nc6 but without early d3} (7. O-O Nf6 8. d3 O-O 9. b3 Be6 10. Nd5 Qd7 11. Bb2 Rae8 12. Qd2 Nd8 13. Qa5 Nxd5 14. cxd5 Bf7 15. Qxa7 g5 16. Rac1 Bh5 17. f3 {1-0 (28) Leko,P (2732)-Ding,L (2702) Beijing 2012}) 7... Nf6 {[%emt 0:00:34]} 8. Bb2 {[%emt 0:00:12]} O-O {[%emt 0:00:39]} 9. d4 {[%emt 0:01:25]} e4 {[%emt 0:09:39]} 10. Qd2 {[%emt 0:00:28]} Nb4 $146 {[%emt 0:03:37]} ({Predecessor:} 10... a5 11. Nf4 g5 12. Nfd5 Nxd5 13. Nxd5 {½-½ (53) Bagirov,V (2515)-Lalic,S (2305) Haarlem 1996}) 11. Nc1 {[%emt 0:05:43]} c5 {[%emt 0:06:48]} 12. a3 {[%emt 0:02:06]} Nc6 {[%emt 0:01:29]} 13. N1e2 {[%emt 0:00:57]} cxd4 {[%emt 0:09:00]} 14. exd4 {[%emt 0:00:13]} d5 {[%emt 0:00:41]} 15. c5 {[%emt 0:08:24]} b6 {[%emt 0:02:46]} 16. Rd1 {[%emt 0:08:00]} bxc5 17. dxc5 {[%emt 0:00:30]} Ne5 {[%emt 0:11:22]} 18. O-O {[%emt 0:02:49]} Ba6 {[%emt 0:02:25]} 19. b4 {[%emt 0:01:46]} Nf3+ {[%emt 0:11:02]} 20. Bxf3 {[%emt 0:00:08]} exf3 {[%emt 0:00:02]} 21. Nd4 {[%emt 0:08:24]} Bxf1 {[%emt 0:02:27]} 22. Kxf1 {[%emt 0:00:59]} Re8 {[%emt 0:02:11]} 23. Qf4 {[%emt 0:03:06]} Ne4 {[%emt 0:10:14]} 24. Qxf3 {[%emt 0:04:29]} a5 {[%emt 0:03:19]} 25. Nce2 {[%emt 0:11:10]} axb4 {[%emt 0:08:18]} 26. axb4 {[%emt 0:00:06]} Rb8 {[%emt 0:02:14]} 27. Nc6 {[%emt 0:04:57]} Qc8 {[%emt 0:00:05]} 28. Nxb8 {[%emt 0:01:12]} Bxb2 {[%emt 0:00:05]} 29. Qb3 {[%emt 0:01:51]} Qxb8 {[%emt 0:00:11]} 30. Rxd5 {[%emt 0:02:28]} Bg7 {[%emt 0:02:00]} 31. f3 {[%emt 0:07:41]} Kh8 $18 {[%emt 0:02:21]} (31... Nxc5 $142 32. Rxc5+ Kh8) 32. fxe4 {[%emt 0:00:21]} fxe4 {[%emt 0:00:05]} 33. Kg2 {[%emt 0:03:13]} Qb7 {[%emt 0:02:23]} 34. Rd6 {[%emt 0:05:02]} e3+ {[%emt 0:01:43]} 35. Qd5 {[%emt 0:02:47]} Qxb4 {[%emt 0:01:51]} 36. Rd8 {[%emt 0:01:11]} Qb5 {[%emt 0:00:41]} 37. Nd4 {[%emt 0:01:21]} Qb2+ {[%emt 0:01:53]} 38. Kh3 {[%emt 0:00:27]} Rf8 {[%emt 0:00:57]} 39. Rxf8+ {[%emt 0:01:16]} Bxf8 {[%emt 0:00:01]} 40. Qe5+ {[%emt 0:00:45]} Kg8 {[%emt 0:00:05]} 41. Qe6+ {[%emt 0:30:12]} Kg7 {[%emt 0:30:12]} 42. Qxe3 {[%emt 0:00:20]} Qb8 {[%emt 0:00:59]} 43. c6 {[%emt 0:01:08]} Bd6 {[%emt 0:00:52]} 44. Qe6 {[%emt 0:01:23]} Qf8 {[%emt 0:00:30]} 45. Kg2 {[%emt 0:01:13]} 1-0

[Event "83rd ESP-ch Women-ch 2018"]
[Site "Linares"]
[Date "2018.08.22"]
[Round "3"]
[White "Silva Rodriguez, Fernando"]
[Black "Serrano Garcia, Luis"]
[Result "1-0"]
[ECO "E41"]
[WhiteElo "2239"]
[BlackElo "1915"]
[Annotator "NA"]
[PlyCount "69"]
[EventDate "2018.08.09"]
[EventType "tourn"]
[EventCountry "ESP"]
[SourceTitle "playchess.com"]
[Source "ChessBase"]
[SourceQuality "1"]
[TimeControl "40/5400+30:1800+30"]

1. d4 {[%emt 0:00:00]} Nf6 {[%emt 0:00:00]} 2. c4 {[%emt 0:00:00]} e6 {[%emt 0:00:00]} 3. Nc3 {[%emt 0:00:08]} Bb4 {[%emt 0:00:03]} 4. e3 {[%emt 0:00:10]} c5 {[%emt 0:00:22]} 5. Bd3 b6 {[%emt 0:04:15]} 6. Nge2 {[%emt 0:01:41]} Bb7 {[%emt 0:00:51]} 7. O-O {[%emt 0:00:09]} O-O {[%emt 0:00:32]} 8. a3 {[%emt 0:00:30]} Bxc3 {[%emt 0:09:59]} 9. bxc3 {[%emt 0:00:55]} d5 {[%emt 0:06:22]} 10. cxd5 {[%emt 0:00:09]} exd5 {[%emt 0:00:16]} 11. f3 {[%emt 0:00:10]} Re8 {[%emt 0:09:16]} 12. g4 {[%emt 0:00:39]} Nc6 {[%emt 0:13:22]} 13. Ng3 {[%emt 0:01:25]} c4 {[%emt 0:03:13]} 14. Bb1 {[%emt 0:04:41]} Na5 {[%emt 0:02:50]} 15. Ra2 {[%emt 0:00:25]} g6 {[%emt 0:03:31]} 16. Re2 {[%emt 0:14:34]} h6 {[%emt 0:10:26]} 17. Bc2 {[%emt 0:02:19]} Nb3 {[%emt 0:03:28]} 18. Bb2 {[%emt 0:14:58]} Qc7 {[%emt 0:08:01]} 19. Qe1 {[%emt 0:02:39]} Qc6 {[%emt 0:06:51]} 20. h4 {[%emt 0:01:52]} Re6 {[%emt 0:09:15]} 21. g5 {[%emt 0:01:27]} hxg5 {[%emt 0:00:40]} 22. hxg5 {[%emt 0:00:04]} Nh7 {[%emt 0:00:18]} 23. f4 {[%emt 0:00:10]} Rae8 {[%emt 0:00:43]} 24. Rf3 {[%emt 0:01:30]} f5 {[%emt 0:02:57]} 25. gxf6 {[%emt 0:09:02]} Rxf6 {[%emt 0:00:39]} 26. Rg2 {[%emt 0:00:07]} Ng5 {[%emt 0:01:07]} 27. Rf1 {[%emt 0:01:08]} Nh3+ {[%emt 0:01:25]} 28. Kh2 {[%emt 0:00:05]} Nxf4 {[%emt 0:00:07]} 29. Rgf2 {[%emt 0:00:37]} Qe6 {[%emt 0:00:58]} 30. Rxf4 {[%emt 0:02:43]} Rxf4 {[%emt 0:00:04]} 31. Rxf4 {[%emt 0:00:05]} Qxe3 {[%emt 0:00:08]} 32. Qxe3 {[%emt 0:01:48]} Rxe3 {[%emt 0:00:10]} 33. Bxg6 {[%emt 0:00:15]} Nd2 {[%emt 0:01:41]} 34. Kg2 {[%emt 0:05:53]} Ne4 {[%emt 0:01:07]} 35. Bf7+ {[%emt 0:10:07]} 1-0

[Event "83rd ESP-ch Women-ch 2018"]
[Site "Linares"]
[Date "2018.08.22"]
[Round "3"]
[White "Diaz Castro, Ismael"]
[Black "Amoros Moran, Jose Joaquin"]
[Result "1-0"]
[ECO "A46"]
[WhiteElo "2212"]
[BlackElo "1908"]
[Annotator "NA"]
[PlyCount "67"]
[EventDate "2018.08.09"]
[EventType "tourn"]
[EventCountry "ESP"]
[SourceTitle "playchess.com"]
[Source "ChessBase"]
[SourceQuality "1"]
[TimeControl "40/5400+30:1800+30"]

1. d4 {[%emt 0:00:00]} Nf6 {[%emt 0:00:00]} 2. Nf3 {[%emt 0:00:00]} e6 {[%emt 0:00:00]} 3. g3 {[%emt 0:00:07]} b6 {[%emt 0:00:00]} 4. Bg2 {[%emt 0:00:01]} Bb7 {[%emt 0:00:59]} 5. O-O {[%emt 0:00:12]} d5 {[%emt 0:00:10]} 6. c4 {[%emt 0:00:27]} Nbd7 {[%emt 0:01:03]} 7. Nc3 {[%emt 0:00:35]} Be7 {[%emt 0:00:55] E16: Damenindisch (Hauptfortsetzung mit Lb4)} 8. Qc2 {[%emt 0:07:09]} O-O {[%emt 0:01:05]} 9. Rd1 {[%emt 0:01:37]} a6 {[%emt 0:03:33]} 10. cxd5 {[%emt 0:09:52]} exd5 {[%emt 0:00:28]} 11. Bf4 {[%emt 0:04:35]} Rc8 {[%emt 0:00:37]} 12. Rac1 {[%emt 0:00:10]} h6 {[%emt 0:06:59]} 13. h3 $146 {[%emt 0:04:00]} ({Vorgänger:} 13. Na4 c6 14. Nc3 b5 15. Ne1 Qb6 16. Bh3 Rcd8 17. Nd3 Rfe8 18. b4 {1-0 (42) Ivanov,M (2375)-Ginzburg,M (2150) Krasnodar 1996}) 13... Re8 {[%emt 0:03:19]} 14. g4 {[%emt 0:01:25]} Bf8 {[%emt 0:07:36]} 15. Bh2 {[%emt 0:23:23]} g6 {[%emt 0:14:40]} 16. Ne5 {[%emt 0:06:34]} Qe7 {[%emt 0:04:02]} 17. Qb3 {[%emt 0:01:29]} Qe6 {[%emt 0:04:09]} 18. e3 {[%emt 0:08:17]} Bg7 {[%emt 0:04:19]} 19. Ne2 {[%emt 0:03:22]} c6 {[%emt 0:07:05]} 20. Nf4 {[%emt 0:04:18]} Qe7 {[%emt 0:01:00]} 21. Nfd3 {[%emt 0:06:13]} a5 {[%emt 0:00:14]} 22. a4 {[%emt 0:00:49]} Qd8 {[%emt 0:07:55]} 23. Rc2 {[%emt 0:08:08]} Nb8 {[%emt 0:01:41]} 24. Rdc1 $14 {[%emt 0:01:04]} Nfd7 {[%emt 0:03:43]} 25. e4 {[%emt 0:01:12]} Nxe5 {[%emt 0:01:54]} 26. Nxe5 {[%emt 0:00:52]} Bxe5 {[%emt 0:02:23]} 27. Bxe5 {[%emt 0:00:02]} Rxe5 {[%emt 0:07:27]} 28. dxe5 {[%emt 0:00:09]} d4 {[%emt 0:00:06]} 29. e6 {[%emt 0:00:26]} fxe6 {[%emt 0:02:18]} 30. Qxe6+ {[%emt 0:00:09]} Kg7 {[%emt 0:00:06]} 31. e5 {[%emt 0:00:48]} d3 {[%emt 0:00:49]} 32. Rd2 {[%emt 0:00:18]} Ba6 {[%emt 0:03:02]} 33. Be4 {[%emt 0:01:08]} Qg5 34. f4 {[%emt 0:00:21]} 1-0